Cogmind - Beta 16.1 @@@ ROGUE MODE // 2026.02.10 @ 20:10:00 Player: Storm Mk9 Result: Destroyed by GZ-Y68(R) with Subdweller Machine Gun Performance ------------- Evolutions (0) 0 Regions Visited (2) 400 Robots Destroyed (20) 100 Value Destroyed (488) 488 Prototype IDs (5) 100 Alien Tech Used (0) 0 Bonus (0) 0 TOTAL SCORE: 1088 Bonus ------- None Cogmind --------- Core Integrity 0/250 Matter 297/300 Energy 280/280 System Corruption 1% Temperature Cool (0) Movement Treading (240) Ox1 Location -10/Subcaves Parts ------- > --- POWER (1) -------- Cooled Ion Engine > --- PROPULSION (2) --- Light Treads > --- UTILITY (2) ------ Large Storage Unit Makeshift Light Armor Plating > --- WEAPON (2) ------- Particle Gun Light Assault Rifle > --- INVENTORY (15) --- Cooled Ion Engine Cooled Ion Engine Cooled Ion Engine Aluminum Leg High-capacity Storage Unit Medium Matter Pod (100) Seismic Detector Light Armor Plating EM Pulse Gun Heavy EM Pulse Gun Heavy EM Pulse Gun Subdweller Machine Gun Barrage Gun Barrage Gun Peak State ------------ > --- POWER ------------ Cooled Ion Engine > --- PROPULSION ------- Light Treads Spiked Treads > --- UTILITY ---------- Large Storage Unit Makeshift Light Armor Plating > --- WEAPON ----------- Particle Gun Light Assault Rifle > --- INVENTORY -------- Cooled Ion Engine Cooled Ion Engine Cooled Ion Engine Light Treads Aluminum Leg High-capacity Storage Unit Medium Matter Pod Seismic Detector Light Armor Plating EM Pulse Gun Heavy EM Pulse Gun Heavy EM Pulse Gun Subdweller Machine Gun Barrage Gun Barrage Gun [Rating: 16] Favorites ----------- Power Cooled Ion Engine Engine Cooled Ion Engine Propulsion Light Treads Treads Light Treads Utility Large Storage Unit Device Seismic Detector Storage Large Storage Unit Protection Light Armor Plating Weapon Particle Gun Energy Gun Particle Gun Ballistic Gun Assault Rifle Build | -11 -10 -10 ------- Run | Yrd Mat Sub Slots Evolved . | . . . Power . | . . . Propulsion . | . . . Utility . | . . . Weapon . | . . . Parts Attached 16 | 7 4 5 Power 2 | 1 1 . Engine 2 | 1 1 . Core . | . . . Reactor . | . . . Propulsion 5 | 2 1 2 Treads 5 | 2 1 2 Leg . | . . . Wheel . | . . . Hover . | . . . Flight . | . . . Utility 5 | 2 1 2 Device 1 | 1 . . Storage 2 | 1 1 . Processor . | . . . Hackware . | . . . Protection 2 | . . 2 Artifact . | . . . Weapon 4 | 2 1 1 Energy Gun 2 | 1 1 . Energy Cannon . | . . . Ballistic Gun 2 | 1 . 1 Ballistic Cannon . | . . . Launcher . | . . . Special Weapon . | . . . Impact Weapon . | . . . Slashing Weapon . | . . . Piercing Weapon . | . . . Special Melee Weapon . | . . . Unidentified Prototypes 1 | . 1 . Parts Lost 2 | . . 2 Power . | . . . Propulsion 2 | . . 2 Utility . | . . . Weapon . | . . . Highest Loss Streak 1 | . . 1 To Critical Strikes . | . . . Average Backups 11 | 3 7 14 Power 2 | . 1 3 Propulsion 2 | 1 2 2 Utility 2 | . 1 4 Weapon 3 | 1 2 5 Tool/Special . | . . . Unused Backups 15 | . 1 14 Power 4 | . 1 3 Propulsion 2 | . . 2 Utility 3 | . . 3 Weapon 6 | . . 6 Tool/Special . | . . . Average Slot Usage (%) 99 | . 100 99 Engine 14 | . 14 14 Treads 27 | . 28 27 Device 7 | . 14 1 Storage 14 | . 14 14 Protection 6 | . . 12 Energy Gun 14 | . 14 14 Ballistic Gun 13 | . 14 13 Peak Build Rating 16 | 7 12 16 Average Rating 10 | 4 7 13 On Entrance 6 | . 7 12 Avg Prop Armor Cover (%) . | . . . Naked Turns . | . . . Heaviest Build 36 | 15 34 36 Greatest Support 40 | 40 40 40 Greatest Overweight (x) 1 | 1 . . Average Overweight (x) . | . . . Largest Inventory Capacity 15 | 8 15 15 Average Capacity 12 | 7 9 15 Most Carried 15 | 5 14 15 Average Carried 11 | 3 7 14 Final Capacity 15 | 8 15 15 Final Carried 14 | 4 14 14 Class Distribution -------------------- 100% | Mutant Dominant Class ---------------- Mutant | -10/Materials Mutant | -10/Subcaves Resources | -11 -10 -10 ----------- Run | Yrd Mat Sub Matter Collected 678 | 242 302 134 Remotely . | . . . Salvage Created 655 | 21 395 239 Parts 43 | 3 19 21 Haulers Intercepted 2 | . 2 . Recyclers Shooed . | . . . Parts Field Recycled . | . . . Retrieved Matter . | . . . Parts Self-Destructed 5 | . . 5 Prevented . | . . . Parts Restored . | . . . Kills | -11 -10 -10 ------- Run | Yrd Mat Sub Combat Hostiles Destroyed 16 | . 8 8 Guns 16 | . 8 8 Classes Destroyed 7 | 1 4 2 Tunneler 1 | 1 . . Hauler 2 | . 2 . Watcher 1 | . 1 . Swarmer 6 | . 3 3 Grunt 5 | . 5 . Sentry 1 | . . 1 Subdweller 4 | . . 4 Best Kill Streak 4 | 1 2 4 Combat Bots Only 4 | . 2 4 Max Kills in Single Turn 1 | 1 1 1 Gunslinging . | . . . Exploded . | . . . Melee . | . . . Uniques/NPCs Destroyed . | . . . Combat | -11 -10 -10 -------- Run | Yrd Mat Sub Hostile Shots Fired 98 | . 34 64 Missed 21 | . 7 14 Hits 77 | . 27 50 Projectile 77 | . 27 50 Critical Strikes 1 | . . 1 Damage Taken 1072 | . 271 801 Core 260 | . 61 199 Absorbed by Shields . | . . . Core Remaining (%) 100 | 100 . . Volleys Fired 88 | 4 44 40 Largest 2 | 2 2 2 Hottest 85 | 70 85 85 Shots Fired 171 | 8 87 76 Gun 171 | 8 87 76 Cannon . | . . . Launcher . | . . . Special . | . . . Kinetic 86 | 4 44 38 Thermal 85 | 4 43 38 Explosive . | . . . Electromagnetic . | . . . Robot Hit Streak 20 | 2 14 20 Robot Miss Streak 4 | 2 4 2 Penetration Max . | . . . Secondary Targets 2 | . 2 . Max Gunslinging Chain 1 | . 1 . Shots Hit Robots 119 | 4 58 57 Core Hits 35 | 1 18 16 Critical Kills . | . . . Critical Parts Destroyed 1 | . 1 . Critical Strikes 9 | . 6 3 Burn 7 | . 5 2 Destroy 2 | . 1 1 Melee Attacks . | . . . Impact . | . . . Slashing . | . . . Piercing . | . . . Sneak Attacks . | . . . Combat Hostiles . | . . . Follow-up Attacks . | . . . Damage Inflicted 1492 | 52 728 712 Guns 1492 | 52 728 712 Cannons . | . . . Explosions . | . . . Melee . | . . . Ramming . | . . . Kinetic 623 | 15 360 248 Thermal 869 | 37 368 464 Explosive . | . . . Electromagnetic . | . . . Impact . | . . . Slashing . | . . . Piercing . | . . . Highest Corruption 1 | . 1 1 Average Corruption 1 | . 1 1 Corruption Purged . | . . . Corruption Blocked . | . . . Effects 10 | . . 10 Message Errors 3 | . . 3 Matter Fused 4 | . . 4 Energy Discharges 1 | . . 1 Data Loss (minor) 2 | . . 2 Overload Shots . | . . . Overflow Damage . | . . . Projectiles . | . . . Explosions . | . . . Melee . | . . . Knockbacks . | . . . Impact . | . . . Kinetic . | . . . Secondary . | . . . Self-Inflicted Damage . | . . . Shots . | . . . Rammed . | . . . Targets Rammed . | . . . Kicked . | . . . Crushed . | . . . Highest Temperature 159 | 18 159 37 Average Temperature 24 | 10 29 11 Received Heat Transfer 240 | . 87 153 Siege Activations . | . . . Martial Activations . | . . . Shielding Activations . | . . . Robots Disrupted . | . . . Combat Hostiles . | . . . Robots Corrupted . | . . . Combat Hostiles . | . . . Parts Fried . | . . . Impact Corruptions . | . . . Robots Melted 1 | . 1 . Combat Hostiles . | . . . Parts Melted 4 | . 2 2 Heat Transferred 2812 | 111 1443 1258 Parts Sabotaged . | . . . Parts Stolen . | . . . Parts Stripped . | . . . Power Chain Reactions . | . . . Alert | -11 -10 -10 ------- Run | Yrd Mat Sub Maximum Alert Level . | . . . Low Security (%) 100 | 100 100 . Level 1 . | . . . Level 2 . | . . . Level 3 . | . . . Level 4 . | . . . Level 5 . | . . . High Security . | . . . Max Security . | . . . Peak Influence 82 | 5 82 . Initial . | . . . Average 15 | . 16 . Influence Increases 341 | 5 246 90 Destroy 0b10 Robot/C 240 | . 160 80 Destroy 0b10 Robot/NC 20 | 5 15 . Destroy Leader 46 | . 36 10 Successful Hack 19 | . 19 . Destroy Structure 1 | . 1 . Lose Combat Pursuer 15 | . 15 . Influence Decreases 339 | 5 246 88 Time Decay 329 | 5 246 78 Lost Part 10 | . . 10 Squads Dispatched 1 | . 1 . Investigation . | . . . Extermination . | . . . Reinforcement 1 | . 1 . Assault . | . . . Garrison . | . . . Intercept . | . . . Searches Triggered . | . . . Construction Impeded . | . . . Haulers Reinforced . | . . . Active Scanning Responses . | . . . Cargo Convoy Interrupts . | . . . Stealth | -11 -10 -10 --------- Run | Yrd Mat Sub Distress Signals . | . . . Communications Jammed . | . . . Distress Signals . | . . . Times Spotted 28 | . 19 9 Peak Tracking Total 5 | . 5 3 Tactical Retreats 1 | . 1 . Traps | -11 -10 -10 ------- Run | Yrd Mat Sub Traps Triggered 1 | . 1 . Indirectly . | . . . Trap Hack Attempts . | . . . Triggered . | . . . Disarmed . | . . . Reprogrammed . | . . . Reused . | . . . Traps Extracted . | . . . Installed . | . . . Triggered . | . . . Machines | -11 -10 -10 ---------- Run | Yrd Mat Sub Machines Disabled . | . . . Max in Single Turn . | . . . Machines Repaired . | . . . Machines Dismantled . | . . . Machines Sabotaged . | . . . Overloaded Fab Kills . | . . . Hacking | -11 -10 -10 --------- Run | Yrd Mat Sub Machines Accessed 8 | . 7 1 Terminals 7 | . 7 . Fabricators . | . . . Repair Stations . | . . . Recycling Units . | . . . Scanalyzers . | . . . Garrison Access . | . . . Total Hacks 31 | . 30 1 Successful 21 | . 20 1 Failed 9 | . 9 . Catastrophic . | . . . Database Lockouts 1 | . 1 . Manual 28 | . 28 . Terminals 30 | . 30 . Fabricators . | . . . Repair Stations . | . . . Recycling Units . | . . . Scanalyzers . | . . . Garrison Access . | . . . Terminal Hacks 6 | . 5 1 Robot Analysis 2 | . 2 . Prototype ID Bank 2 | . 2 . Open Door 1 | . . 1 Branch Access Points 1 | . 1 . Fabricator Hacks . | . . . Repair Station Hacks . | . . . Recycling Unit Hacks . | . . . Scanalyzer . | . . . Garrison Access Hacks . | . . . Unauthorized Hacks 15 | . 15 . Terminals 15 | . 15 . Track 4 | . 4 . Botnet 6 | . 6 . Skim 5 | . 5 . Fabricators . | . . . Repair Stations . | . . . Recycling Units . | . . . Scanalyzers . | . . . Garrison Access . | . . . Data Cores Recovered . | . . . Used . | . . . Hacking Detections 6 | . 6 . Full Trace Events . | . . . Feedback Events . | . . . Feedback Blocked . | . . . Robot Schematics Acquired . | . . . Robots Built . | . . . Authchips . | . . . Time . | . . . Total Robot Build Rating . | . . . Part Schematics Acquired . | . . . Parts Built . | . . . Authchips . | . . . Time . | . . . Total Part Build Rating . | . . . Part Studies Acquired . | . . . Parts Repaired . | . . . Time . | . . . Parts Recycled . | . . . Recycled Matter . | . . . Retrieved Matter . | . . . Retrieved Components . | . . . Parts Scanalyzed . | . . . Part Schematics Acquired . | . . . Parts Damaged . | . . . Bothacking | -11 -10 -10 ------------ Run | Yrd Mat Sub Used RIF Installer . | . . . Robots Hacked . | . . . Non-combat . | . . . Combat . | . . . Robot Hacks Applied . | . . . Relay Couplers Released . | . . . Fabnet Peak Effective % . | . . . Robots Rewired . | . . . Allies Hacked . | . . . Hacks Repelled . | . . . Allies | -11 -10 -10 -------- Run | Yrd Mat Sub Total Allies . | . . . Largest Group . | . . . Highest-Rated Group . | . . . Highest-Rated Ally . | . . . Total Orders . | . . . Ally Attacks . | . . . Total Damage . | . . . Kills . | . . . Allies Corrupted . | . . . Allies Melted . | . . . Intel | -11 -10 -10 ------- Run | Yrd Mat Sub Active Infowar (turns) 1337 | 25 1202 110 Seismic 1337 | 25 1202 110 Robot Analysis Total 2 | . 2 . Derelict Logs Recovered 1 | . . 1 Drone Launches . | . . . Drone Recoveries . | . . . Exploration | -11 -10 -10 ------------- Run | Yrd Mat Sub Turns Passed 2652 | 132 1202 1318 Spaces Moved 1408 | 78 608 722 Core 26 | 26 . . Treads 1382 | 52 608 722 Legs . | . . . Wheels . | . . . Hover . | . . . Flight . | . . . Fastest Speed 50 | 50 160 160 Average Speed 158 | 132 160 160 Slowest Speed 160 | 160 160 160 Overloaded Moves . | . . . Propulsion Burnouts . | . . . Robots Hopped . | . . . Potential Cave-ins . | . . . Cave-ins Triggered . | . . . Exploration Rate (%) 46 | 4 94 41 Regions Visited 2 Branch Regions 1 Pre-discovered Areas . | . . . Known Exits Taken . | . . . Unknown Exits Taken 2 | 1 1 . Scrap Searched 6 | . . 6 Spaces Dug . | . . . Terrain Destroyed . | . . . Melee . | . . . Projectile . | . . . AOE . | . . . Terrain Rammed . | . . . Walls Destroyed . | . . . Machines Disabled . | . . . Actions | -11 -10 -10 --------- Run | Yrd Mat Sub Total 1666 | 98 753 815 Wait 119 | . 79 40 Move 1406 | 77 607 722 Hop . | . . . Pick Up 26 | 10 13 3 Fast Attach 3 | 1 . 2 Attach 7 | 6 . 1 Detach . | . . . Swap 6 | . 4 2 Drop 11 | . 6 5 Fire 88 | 4 44 40 Melee . | . . . Ram . | . . . Kick . | . . . Crush . | . . . Escape Stasis . | . . . Rewire . | . . . Trap . | . . . Miscellaneous . | . . . Route ------- -11/Scrapyard -10/Materials (discovered 4 exits: [*Mat] / *Min x2 / *Sub) -10/Subcaves History --------- Turn | Location | Event 6 | -11/Scrapyard | Discovered new exit (range 14) 133 | -11/Scrapyard | Entered Materials 287 | -10/Materials | Discovered new exit (range 16) 305 | -10/Materials | Build established: Mutant 434 | -10/Materials | Identified exit to Mines 455 | -10/Materials | Discovered new exit (range 4) 744 | -10/Materials | Central database locked down 1312 | -10/Materials | Discovered new exit (range 8) 1335 | -10/Materials | Entered Subcaves 1336 | -10/Subcaves | Approached by a straggling Scientist 1343 | -10/Subcaves | Learned location of 1 exit from Materials 1556 | -10/Subcaves | Shifting Twisted Machinery released Barrage Gun 1564 | -10/Subcaves | Shifting Twisted Machinery released Shrapnel Trap 2577 | -10/Subcaves | Core integrity fell below 50% 2589 | -10/Subcaves | Core integrity fell below 20% 2653 | -10/Subcaves | Destroyed by GZ-Y68(R) with Subdweller Machine Gun Last Messages --------------- 02146_ Found 66 Matter. 02169_ Searching scrap... 02169_ Found Battle Cannon. 02169_ Found Flamer. 02169_ Found 52 Matter. 02264_ AFCBXE/F/MT BHSBWXRYDG1MNEMB8/2